Cogmind - Beta 15 @@@ ROGUE MODE // 2025.05.27 @ 17:45:01 Player: Hinzy Result: Self-destructed Performance ------------- Evolutions (4) 2000 Regions Visited (7) 1400 Robots Destroyed (49) 245 Value Destroyed (1387) 1387 Prototype IDs (5) 100 Alien Tech Used (0) 0 Bonus (48) 48 TOTAL SCORE: 5180 Bonus ------- High Alert Combat Kills 48 Cogmind --------- Core Integrity 850/850 Matter 161/300 Energy 100/100 System Corruption 0% Temperature Cool (0) Movement Walking (200) Ox1 Location -6/Factory Parts ------- > --- POWER (2) -------- (None) > --- PROPULSION (4) --- Carbon-fiber Leg Titanium Leg Titanium Leg Improved Carbon-fiber Leg > --- UTILITY (6) ------ Advanced Heat Sink Small Storage Unit Machine Analyzer Improved Signal Interpreter Advanced Targeting Computer Improved Medium Armor Plating > --- WEAPON (3) ------- Heavy Machine Gun Long-range Missile Launcher Flail > --- INVENTORY (8) ---- Medium Treads High-capacity Matter Pod (200) Hacking Suite System Shield Heavy Missile Launcher Peak State ------------ > --- POWER ------------ (None) > --- PROPULSION ------- Carbon-fiber Leg Titanium Leg Titanium Leg Improved Carbon-fiber Leg > --- UTILITY ---------- Advanced Heat Sink Small Storage Unit Machine Analyzer Improved Signal Interpreter Advanced Targeting Computer Improved Medium Armor Plating > --- WEAPON ----------- Heavy Machine Gun Long-range Missile Launcher Flail > --- INVENTORY -------- Medium Treads High-capacity Matter Pod Hacking Suite System Shield Heavy Missile Launcher [Rating: 45] Favorites ----------- Power Light Deuterium Engine Engine Light Deuterium Engine Power Core Light Nuclear Core Propulsion Advanced Treads Treads Advanced Treads Leg Titanium Leg Utility Small Storage Unit Device Improved Sensor Array Storage Small Storage Unit Processor Improved Signal Interpreter Protection Light Armor Plating Weapon Minigun Energy Gun Medium Laser Ballistic Gun Minigun Launcher Grenade Launcher Impact Weapon Flail Build | -11 -10 -9 -8 -7 -7 -7 -6 ------- Run | Yrd Mat Mat Mat Fac Low Low Fac Slots Evolved 8 | . . 2 2 2 . . 2 Power 1 | . . . . 1 . . . Propulsion 2 | . . . 1 1 . . . Utility 4 | . . 2 . . . . 2 Weapon 1 | . . . 1 . . . . Parts Attached 37 | 2 2 12 8 3 4 . 6 Power 5 | . . 1 1 1 2 . . Engine 2 | . . 1 1 . . . . Core 3 | . . . . 1 2 . . Reactor . | . . . . . . . . Propulsion 11 | . 2 4 3 1 . . 1 Treads 7 | . 2 2 2 1 . . . Leg 4 | . . 2 1 . . . 1 Wheel . | . . . . . . . . Hover . | . . . . . . . . Flight . | . . . . . . . . Utility 11 | 1 . 3 3 1 . . 3 Device 3 | 1 . . 1 . . . 1 Storage . | . . . . . . . . Processor 5 | . . 1 2 1 . . 1 Hackware . | . . . . . . . . Protection 3 | . . 2 . . . . 1 Artifact . | . . . . . . . . Weapon 10 | 1 . 4 1 . 2 . 2 Energy Gun 2 | 1 . . . . 1 . . Energy Cannon . | . . . . . . . . Ballistic Gun 5 | . . 2 1 . 1 . 1 Ballistic Cannon . | . . . . . . . . Launcher 2 | . . 1 . . . . 1 Special Weapon . | . . . . . . . . Impact Weapon 1 | . . 1 . . . . . Slashing Weapon . | . . . . . . . . Piercing Weapon . | . . . . . . . . Special Melee Weapon . | . . . . . . . . Unidentified Prototypes . | . . . . . . . . Parts Lost 13 | . . 1 . . 12 . . Power 4 | . . . . . 4 . . Propulsion 4 | . . . . . 4 . . Utility 2 | . . 1 . . 1 . . Weapon 3 | . . . . . 3 . . Highest Loss Streak 4 | . . 1 . . 4 . . To Critical Strikes 1 | . . . . . 1 . . Average Backups 6 | 6 7 7 7 7 7 3 4 Power . | 1 1 1 1 . . . . Propulsion 3 | 4 3 4 3 4 3 . . Utility 1 | . 1 1 1 2 2 2 2 Weapon 1 | 1 1 1 1 1 1 1 1 Tool/Special . | . . . . . . . . Unused Backups 15 | 6 1 3 1 . . . 4 Power 2 | 1 . . 1 . . . . Propulsion 4 | 3 . 1 . . . . . Utility 6 | 1 . 2 . . . . 3 Weapon 3 | 1 1 . . . . . 1 Tool/Special . | . . . . . . . . Average Slot Usage (%) 86 | . 100 95 97 94 71 69 73 Engine 6 | . 14 11 9 7 1 . . Core 1 | . . . . 7 2 . . Treads 14 | . 14 7 19 9 21 7 2 Leg 9 | . 14 14 6 15 1 23 23 Device 6 | . 14 6 8 7 2 . 5 Storage 8 | . 14 11 9 7 7 7 6 Processor 13 | . . 10 17 15 15 15 17 Protection 2 | . . 11 . . . . 2 Energy Gun 3 | . 28 1 . . 1 7 4 Ballistic Gun 11 | . . 19 18 15 7 . 1 Impact Weapon 5 | . . . 8 7 7 7 6 Peak Build Rating 45 | 7 8 19 31 40 39 24 45 Average Rating 24 | 6 7 17 28 37 26 24 33 On Entrance 19 | 6 7 8 18 31 39 24 24 Naked Turns . | . . . . . . . . Heaviest Build 28 | 15 15 22 21 25 25 10 28 Greatest Support 88 | 20 40 44 66 88 88 17 67 Greatest Overweight (x) 4 | . . . . . 4 . 1 Average Overweight (x) . | . . . . . . . . Largest Inventory Capacity 8 | 8 8 8 8 8 8 8 8 Average Capacity 8 | 8 8 8 8 8 8 8 8 Most Carried 8 | 7 8 8 8 8 8 3 6 Average Carried 6 | 6 7 7 7 7 6 3 4 Final Capacity 8 | 8 8 8 8 8 8 8 8 Final Carried 8 | 6 8 8 8 8 3 3 5 Class Distribution -------------------- 100% | Mutant Dominant Class ---------------- Mutant | -10/Materials Mutant | -9/Materials Mutant | -8/Materials Mutant | -7/Factory Mutant | -7/Lower Caves Mutant | -7/Lower Caves Mutant | -6/Factory Resources | -11 -10 -9 -8 -7 -7 -7 -6 ----------- Run | Yrd Mat Mat Mat Fac Low Low Fac Matter Collected 1579 | 220 . 428 252 20 659 . . Remotely . | . . . . . . . . Salvage Created 1444 | 22 11 483 278 20 498 . 132 Parts 91 | 3 3 45 14 3 19 . 4 Haulers Intercepted . | . . . . . . . . Recyclers Shooed . | . . . . . . . . Parts Field Recycled . | . . . . . . . . Retrieved Matter . | . . . . . . . . Parts Self-Destructed 16 | . . . . . 16 . . Prevented . | . . . . . . . . Kills | -11 -10 -9 -8 -7 -7 -7 -6 ------- Run | Yrd Mat Mat Mat Fac Low Low Fac Combat Hostiles Destroyed 41 | . . 25 2 . 11 . 3 Melee 1 | . . . . . 1 . . Guns 25 | . . 13 2 . 10 . . AOE 15 | . . 12 . . . . 3 Classes Destroyed 9 | 1 1 3 4 . . . . Builder 1 | . . . 1 . . . . Tunneler 2 | 2 . . . . . . . Recycler 2 | . . . 2 . . . . Operator 2 | . . . 1 1 . . . Watcher 1 | . 1 . . . . . . Swarmer 18 | . . 15 . . 3 . . Grunt 17 | . . 8 . . 6 . 3 Sentry 2 | . . 2 . . . . . Hunter 4 | . . . 2 . 2 . . Best Kill Streak 5 | 1 1 5 2 1 4 . 3 Combat Bots Only 5 | . . 5 1 . 4 . 3 Max Kills in Single Turn 3 | 1 1 3 1 1 1 . 2 Gunslinging 1 | . . 1 . . . . . Exploded 3 | . . 3 . . . . 2 Melee 1 | . . . . . 1 . . Uniques/NPCs Destroyed . | . . . . . . . . Combat | -11 -10 -9 -8 -7 -7 -7 -6 -------- Run | Yrd Mat Mat Mat Fac Low Low Fac Hostile Shots Fired 215 | . . 81 6 20 104 . 4 Missed 60 | . . 21 1 11 25 . 2 Hits 155 | . . 60 5 9 79 . 2 Projectile 155 | . . 60 5 9 79 . 2 Critical Strikes 3 | . . . . . 3 . . Damage Taken 2220 | . . 690 85 250 1156 . 39 Core 272 | . . 76 43 24 129 . . Absorbed by Shields . | . . . . . . . . Regen/Repaired (Parts) 122 | . . . 122 . . . . Core Remaining (%) 90 | 100 100 81 92 . . 78 . Volleys Fired 117 | 2 1 39 12 15 46 . 2 Largest 2 | 2 2 2 2 2 2 . 1 Hottest 100 | 100 100 55 53 53 65 . 43 Shots Fired 192 | 4 2 69 24 23 68 . 2 Gun 181 | 4 2 60 24 23 68 . . Cannon . | . . . . . . . . Launcher 11 | . . 9 . . . . 2 Special . | . . . . . . . . Kinetic 173 | . . 60 24 23 66 . . Thermal 8 | 4 2 . . . 2 . . Explosive 11 | . . 9 . . . . 2 Electromagnetic . | . . . . . . . . Robot Hit Streak 26 | 3 4 9 4 7 26 . 9 Robot Miss Streak 4 | . . 2 3 2 4 . . Penetration Max 1 | . . . . 1 1 . . Secondary Targets 6 | . . 5 . . 1 . . Max Gunslinging Chain 1 | . . 1 . . 1 . . Shots Hit Robots 135 | 3 1 48 11 14 56 . 2 Core Hits 76 | 2 1 32 10 2 22 . 7 Critical Kills 1 | . . . . . 1 . . Critical Parts Destroyed 1 | . . . . . 1 . . Critical Strikes 2 | . . . . . 2 . . Destroy 2 | . . . . . 2 . . Melee Attacks 12 | . . 1 8 . 3 . . Impact 12 | . . 1 8 . 3 . . Slashing . | . . . . . . . . Piercing . | . . . . . . . . Sneak Attacks . | . . . . . . . . Combat Hostiles . | . . . . . . . . Follow-up Attacks . | . . . . . . . . Damage Inflicted 3285 | 37 12 1408 197 327 1003 . 301 Guns 2190 | 37 12 701 197 317 926 . . Cannons . | . . . . . . . . Explosions 1006 | . . 705 . . . . 301 Melee 77 | . . . . . 77 . . Ramming 12 | . . 2 . 10 . . . Kinetic 2109 | . . 701 197 317 894 . . Thermal 81 | 37 12 . . . 32 . . Explosive 998 | . . 697 . . . . 301 Electromagnetic 8 | . . 8 . . . . . Impact 77 | . . . . . 77 . . Slashing . | . . . . . . . . Piercing . | . . . . . . . . Highest Corruption 3 | . . . . 3 3 3 . Average Corruption 2 | . . . . 1 3 3 . Corruption Purged . | . . . . . . . . Corruption Blocked . | . . . . . . . . Effects 35 | . . . . 4 30 1 . Message Errors 7 | . . . . 1 6 . . Matter Fused 4 | . . . . 1 2 1 . Heat Flow Errors 3 | . . . . . 3 . . Energy Discharges 5 | . . . . . 5 . . Parts Fused 2 | . . . . . 2 . . Data Loss (minor) 8 | . . . . 1 7 . . Data Loss (major) 1 | . . . . . 1 . . Misfires 2 | . . . . 1 1 . . Alerts 2 | . . . . . 2 . . Weapon Failures 1 | . . . . . 1 . . Overload Shots . | . . . . . . . . Overflow Damage 10 | . . 10 . . . . . Projectiles . | . . . . . . . . Explosions 10 | . . 10 . . . . . Melee . | . . . . . . . . Knockbacks . | . . . . . . . . Impact . | . . . . . . . . Kinetic . | . . . . . . . . Secondary . | . . . . . . . . Self-Inflicted Damage 100 | . . 100 . . . . . Shots 4 | . . 4 . . . . . Rammed 1 | . . 1 . . . . . Targets Rammed 2 | . . 1 . 1 . . . Kicked 1 | . . . . 1 . . . Crushed . | . . . . . . . . Highest Temperature 207 | 39 39 65 2 20 207 . . Average Temperature 26 | 20 20 18 1 8 51 . . Received Heat Transfer 600 | . . 156 . . 426 . 18 Siege Activations . | . . . . . . . . Martial Activations . | . . . . . . . . Shielding Activations . | . . . . . . . . Robots Disrupted 1 | . . 1 . . . . . Combat Hostiles . | . . . . . . . . Robots Corrupted . | . . . . . . . . Combat Hostiles . | . . . . . . . . Parts Fried . | . . . . . . . . Impact Corruptions . | . . . . . . . . Robots Melted . | . . . . . . . . Combat Hostiles . | . . . . . . . . Parts Melted . | . . . . . . . . Heat Transferred 222 | 111 37 . . . 74 . . Parts Sabotaged . | . . . . . . . . Parts Stolen . | . . . . . . . . Parts Stripped . | . . . . . . . . Power Chain Reactions . | . . . . . . . . Alert | -11 -10 -9 -8 -7 -7 -7 -6 ------- Run | Yrd Mat Mat Mat Fac Low Low Fac Maximum Alert Level 2 | . . 2 . . . . . Low Security (%) 78 | 100 100 24 100 100 . . 100 Level 1 10 | . . 35 . . . . . Level 2 11 | . . 39 . . . . . Level 3 . | . . . . . . . . Level 4 . | . . . . . . . . Level 5 . | . . . . . . . . High Security . | . . . . . . . . Max Security . | . . . . . . . . Peak Influence 509 | 5 7 509 182 5 . . 78 Initial 177 | . . . 177 . . . 6 Average 97 | 1 . 282 50 . . . 1 Influence Increases 1258 | 10 7 723 144 6 290 . 78 Destroy 0b10 Robot/C 820 | . . 500 40 . 220 . 60 Destroy 0b10 Robot/NC 40 | 10 5 . 20 5 . . . Destroy Leader 172 | . 2 100 20 . 40 . 10 Successful Hack 39 | . . 8 28 . . . 3 Disable Machine 90 | . . 60 30 . . . . Destroy Structure 52 | . . 40 6 1 . . 5 Lose Combat Pursuer 45 | . . 15 . . 30 . . Influence Decreases 1180 | 10 7 302 565 6 275 4 11 Entered New Map 253 | . . . 244 . . 4 5 Time Decay 845 | 10 7 292 321 6 203 . 6 Lost Part 82 | . . 10 . . 72 . . Squads Dispatched 9 | . 2 4 . 1 . . 2 Investigation 5 | . 1 2 . 1 . . 1 Extermination . | . . . . . . . . Reinforcement 3 | . 1 2 . . . . . Assault . | . . . . . . . . Garrison 1 | . . . . . . . 1 Intercept . | . . . . . . . . Searches Triggered . | . . . . . . . . Construction Impeded 1 | . . 1 . . . . . Haulers Reinforced . | . . . . . . . . Active Scanning Responses . | . . . . . . . . Cargo Convoy Interrupts . | . . . . . . . . Stealth | -11 -10 -9 -8 -7 -7 -7 -6 --------- Run | Yrd Mat Mat Mat Fac Low Low Fac Distress Signals 1 | . . 1 . . . . . Communications Jammed . | . . . . . . . . Distress Signals . | . . . . . . . . Times Spotted 55 | . 2 29 5 2 14 . 3 Peak Tracking Total 6 | . 2 6 2 1 5 . 3 Tactical Retreats 3 | . . 1 . . 2 . . Traps | -11 -10 -9 -8 -7 -7 -7 -6 ------- Run | Yrd Mat Mat Mat Fac Low Low Fac Traps Triggered 3 | . 1 1 . 1 . . . Indirectly . | . . . . . . . . Trap Hack Attempts . | . . . . . . . . Triggered . | . . . . . . . . Disarmed . | . . . . . . . . Reprogrammed . | . . . . . . . . Reused . | . . . . . . . . Traps Extracted . | . . . . . . . . Installed . | . . . . . . . . Triggered . | . . . . . . . . Machines | -11 -10 -9 -8 -7 -7 -7 -6 ---------- Run | Yrd Mat Mat Mat Fac Low Low Fac Machines Disabled 6 | . . 4 2 . . . . Max in Single Turn 2 | . . 2 1 . . . . Machines Repaired . | . . . . . . . . Machines Dismantled . | . . . . . . . . Machines Sabotaged . | . . . . . . . . Overloaded Fab Kills . | . . . . . . . . Hacking | -11 -10 -9 -8 -7 -7 -7 -6 --------- Run | Yrd Mat Mat Mat Fac Low Low Fac Machines Accessed 13 | . 1 3 4 2 . . 3 Terminals 7 | . 1 2 2 2 . . . Fabricators 2 | . . . . . . . 2 Repair Stations 2 | . . . 1 . . . 1 Recycling Units . | . . . . . . . . Scanalyzers 2 | . . 1 1 . . . . Garrison Access . | . . . . . . . . Total Hacks 33 | . 1 9 15 3 . . 5 Successful 23 | . . 8 12 1 . . 2 Failed 10 | . 1 1 3 2 . . 3 Catastrophic 2 | . 1 . . . . . 1 Database Lockouts . | . . . . . . . . Manual 8 | . 1 2 3 2 . . . Terminals 13 | . 1 4 5 3 . . . Fabricators 4 | . . . . . . . 4 Repair Stations 6 | . . . 5 . . . 1 Recycling Units . | . . . . . . . . Scanalyzers 10 | . . 5 5 . . . . Garrison Access . | . . . . . . . . Terminal Hacks 6 | . . 3 2 1 . . . Prototype ID Bank 3 | . . 1 1 1 . . . Terminal Index 1 | . . . 1 . . . . Zone Layout 2 | . . 2 . . . . . Fabricator Hacks 2 | . . . . . . . 2 Load Schematic 1 | . . . . . . . 1 Build 1 | . . . . . . . 1 Repair Station Hacks 4 | . . . 4 . . . . Scan Component 2 | . . . 2 . . . . Repair 2 | . . . 2 . . . . Recycling Unit Hacks . | . . . . . . . . Scanalyzer 9 | . . 5 4 . . . . Insert Component 4 | . . 2 2 . . . . Analyze 5 | . . 3 2 . . . . Garrison Access Hacks . | . . . . . . . . Unauthorized Hacks 2 | . . . 2 . . . . Terminals 1 | . . . 1 . . . . Disrupt 1 | . . . 1 . . . . Fabricators . | . . . . . . . . Repair Stations . | . . . . . . . . Recycling Units . | . . . . . . . . Scanalyzers 1 | . . . 1 . . . . Researchers 1 | . . . 1 . . . . Garrison Access . | . . . . . . . . Data Cores Recovered 2 | . . . 1 1 . . . Used 1 | . . . 1 . . . . Hacking Detections 7 | . 1 2 1 1 . . 2 Full Trace Events 3 | . . 1 . 1 . . 1 Feedback Events 1 | . . . . 1 . . . Corruption 1 | . . . . 1 . . . Feedback Blocked . | . . . . . . . . Robot Schematics Acquired . | . . . . . . . . Robots Built . | . . . . . . . . Authchips . | . . . . . . . . Time . | . . . . . . . . Total Robot Build Rating . | . . . . . . . . Part Schematics Acquired 4 | . . 2 2 . . . . Parts Built . | . . . . . . . . Authchips . | . . . . . . . . Time 73 | . . . . . . . 73 Total Part Build Rating . | . . . . . . . . Parts Repaired 2 | . . . 2 . . . . Time 64 | . . . 64 . . . . Parts Recycled . | . . . . . . . . Recycled Matter . | . . . . . . . . Retrieved Matter . | . . . . . . . . Retrieved Components . | . . . . . . . . Parts Scanalyzed 4 | . . 2 2 . . . . Part Schematics Acquired 4 | . . 2 2 . . . . Parts Damaged . | . . . . . . . . Bothacking | -11 -10 -9 -8 -7 -7 -7 -6 ------------ Run | Yrd Mat Mat Mat Fac Low Low Fac Used RIF Installer . | . . . . . . . . Robots Hacked . | . . . . . . . . Non-combat . | . . . . . . . . Combat . | . . . . . . . . Robot Hacks Applied . | . . . . . . . . Relay Couplers Released . | . . . . . . . . Fabnet Peak Effective % . | . . . . . . . . Robots Rewired . | . . . . . . . . Allies Hacked . | . . . . . . . . Hacks Repelled . | . . . . . . . . Allies | -11 -10 -9 -8 -7 -7 -7 -6 -------- Run | Yrd Mat Mat Mat Fac Low Low Fac Total Allies . | . . . . . . . . Largest Group . | . . . . . . . . Highest-Rated Group . | . . . . . . . . Highest-Rated Ally . | . . . . . . . . Total Orders . | . . . . . . . . Ally Attacks . | . . . . . . . . Total Damage . | . . . . . . . . Kills . | . . . . . . . . Allies Corrupted . | . . . . . . . . Allies Melted . | . . . . . . . . Intel | -11 -10 -9 -8 -7 -7 -7 -6 ------- Run | Yrd Mat Mat Mat Fac Low Low Fac Active Infowar (turns) 2558 | 8 387 466 875 184 389 . 249 Sensors 1448 | . . . 875 184 389 . . Seismic 861 | 8 387 466 . . . . . Machine Analysis 249 | . . . . . . . 249 Robot Analysis Total . | . . . . . . . . Derelict Logs Recovered 2 | . . . . . 2 . . Drone Launches . | . . . . . . . . Drone Recoveries . | . . . . . . . . Exploration | -11 -10 -9 -8 -7 -7 -7 -6 ------------- Run | Yrd Mat Mat Mat Fac Low Low Fac Turns Passed 3962 | 67 387 770 920 184 1219 17 398 Spaces Moved 2155 | 47 205 315 498 105 730 14 241 Core 44 | . . . . . 44 . . Treads 1147 | . 58 147 316 19 607 . . Legs 964 | 47 147 168 182 86 79 14 241 Wheels . | . . . . . . . . Hover . | . . . . . . . . Flight . | . . . . . . . . Fastest Speed 120 | 120 120 130 126 126 126 130 125 Average Speed 142 | 120 131 137 138 129 149 130 155 Slowest Speed 250 | 120 160 160 145 145 250 130 200 Overloaded Moves . | . . . . . . . . Propulsion Burnouts . | . . . . . . . . Robots Hopped . | . . . . . . . . Potential Cave-ins . | . . . . . . . . Cave-ins Triggered . | . . . . . . . . Exploration Rate (%) 22 | 4 38 32 22 4 69 5 6 Regions Visited 7 Branch Regions 2 Pre-discovered Areas 1 | . . . . . 1 . . Known Exits Taken 4 | . . . 1 1 1 1 . Unknown Exits Taken 3 | 1 1 1 . . . . . Scrap Searched 3 | . . . . . 3 . . Spaces Dug 5 | . . . 5 . . . . Terrain Destroyed 61 | . . 50 5 1 . . 5 Melee 5 | . . . 5 . . . . Projectile 1 | . . . . 1 . . . AOE 55 | . . 50 . . . . 5 Terrain Rammed . | . . . . . . . . Walls Destroyed . | . . . . . . . . Machines Disabled . | . . . . . . . . Actions | -11 -10 -9 -8 -7 -7 -7 -6 --------- Run | Yrd Mat Mat Mat Fac Low Low Fac Total 2852 | 53 320 596 695 129 786 13 260 Wait 472 | 1 109 205 151 . . . 6 Move 2148 | 46 204 314 497 104 729 13 241 Hop . | . . . . . . . . Pick Up 22 | 1 3 7 6 2 . . 3 Fast Attach 15 | 1 . 2 3 1 3 . 5 Attach 12 | . . 2 3 1 5 . 1 Detach 1 | . . . 1 . . . . Swap 30 | 1 2 14 8 5 . . . Drop 21 | 1 1 11 6 . . . 2 Fire 117 | 2 1 39 12 15 46 . 2 Melee 12 | . . 1 8 . 3 . . Ram . | . . . . . . . . Kick 1 | . . . . 1 . . . Crush 1 | . . 1 . . . . . Escape Stasis . | . . . . . . . . Rewire . | . . . . . . . . Trap . | . . . . . . . . Miscellaneous . | . . . . . . . . Route ------- -11/Scrapyard -10/Materials (discovered 2 exits: *Mat / [*Min]) -9/Materials -8/Materials -7/Factory -7/Lower Caves -7/Lower Caves -6/Factory History --------- Turn | Location | Event 6 | -11/Scrapyard | Discovered new exit (range 3) 68 | -11/Scrapyard | Entered Materials 210 | -10/Materials | Discovered new exit (range 7) 310 | -10/Materials | Build established: Mutant 442 | -10/Materials | Discovered new exit (range 4) 455 | -10/Materials | Entered another Materials area 455 | -9/Materials | Evolved 2 slots: Utility x2 951 | -9/Materials | Discovered new exit (range 11) 1225 | -9/Materials | Entered another Materials area 1225 | -8/Materials | Evolved 2 slots: Propulsion x1, Weapon x1 1904 | -8/Materials | Repaired Minigun? 1943 | -8/Materials | Repaired Grenade Launcher 2072 | -8/Materials | Discovered new exit (range 16) 2144 | -8/Materials | Identified exit to Factory 2145 | -8/Materials | Entered Factory 2145 | -7/Factory | Evolved 2 slots: Power x1, Propulsion x1 2219 | -7/Factory | Discovered new exit (range 8) 2228 | -7/Factory | Identified exit to Lower Caves 2329 | -7/Factory | Entered Lower Caves 2493 | -7/Lower Caves | Spotted B-75 Beast 2749 | -7/Lower Caves | Lost 4 parts (2p1n1u) 2795 | -7/Lower Caves | Learned Factory terminal intel 3351 | -7/Lower Caves | Lost 4 parts (3n1w) 3393 | -7/Lower Caves | Learned location of Extension (-4) 3536 | -7/Lower Caves | Discovered new exit (range 7) 3543 | -7/Lower Caves | Identified exit to Lower Caves 3548 | -7/Lower Caves | Entered another Lower Caves area 3560 | -7/Lower Caves | Discovered new exit (range 4) 3564 | -7/Lower Caves | Identified exit to Factory 3565 | -7/Lower Caves | Entered Factory 3565 | -6/Factory | Evolved 2 slots: Utility x2 3566 | -6/Factory | Loaded intel: 26 terminal locations 3963 | -6/Factory | Self-destructed Last Messages --------------- 03919_ ALERT: Security rotation in progress. 03921_ >> Machine Analyzer network decryption results: 03921_ Fabricator x2 03945_ Connecting with Fabricator... >>Load(Adv. Treads) Uploading Adv. Treads schematic... Loaded successfully: Adv. Treads Rating: 3 Time: 73 Initiate build sequence. >>Build Building Adv. Treads... ETC: 73 03945_ ALERT: Unauthorized use of fabrication network. Dispatching investigation squad. 03953_ ALERT: All DSF locations entering lockdown mode. 03954_ G-50 Soldier destroyed. Map ----- +----------------------------------------------------+ | """ """ """ """ #????????????????????????????? | | """ #????????????????????????????? | | """ """ """ #????????????????????????????? | | """ """ """ #????????????????????????????? | | """ """ """ ###+#######?????????????????????????? | | # #?????????????????????????? | | """ """ """ # #?????????????????????????? | | """ """ """ # #??T"????"""??????????????? | | """ """ """ # +???"????"Y"??????????????? | | # """ """ #?????????????????????????? | | # """ """ #?????????????????????????? | | # ^ ^ # """ """ #??? ##???????????????????? | | # # #??? ?????????????????? | | # ^ """ ######+####??? ??????????????? | | + """ #????# #?????? ????????????? | | # """ #????# #?????? ??????????? | | # #????# #?????? ??????????? | | # #????# #?????? ?????????? | | ######"" ""###????# #?????# ?????????? | | #????#"F ""#??????# #?????# ????????? | | #????#"""""#?????##+####### ????????? | | ?????#######?????# # %????????? | | ?????????????????# """ # %=???????? | | ?????????????????# """ # %*???????? | | ?????????????????# """ # ??????? | | ?????????????????#! @# ??????? | | ?????????????????# ! + ] ??????? | | ?????????????????# # ########?????????????? | | ?????????????????# " F" # #????????????????????? | | ?????????????????# """" # #??????????????????""? | | ?????????????????########## #??????????????????"F? | | ??????????????????????????# #????????????T"????""" | | ??????????????????????????# #?????????????"????""" | | ??????????????????????????# #????????????????????? | | ??????????????????????????#+#????????????????????? | | ?????????????????????????????????????????????????? | | ????????????????????""??""???????????????????????? | | ????????????????????""??""???????????????????????? | | ????????????????????"""?"""??????????????????????? | | ????????????????????"""?"""??????????????????????? | | ????????????????????"""?"""??????????????????????? | | ?????????????????????????????????????????????????? | | ?????????????????????????????????????????????????? | | ?????????????????????????????????????????????????? | | ?????????????????????????????????????????????????? | | ?????????????????????????????????????????????????? | | ?????????????????????????????????????????????????? | | ?????????????????????????????????????????????????? | | | | | +----------------------------------------------------+ Best States ------------- Heat Dissipation 56 Energy Generation 23 Energy Capacity 265 Matter Stores 300 Matter Capacity 300 Sight Range 16 Robot Scan Range 15 Terrain Scan Density 10 Armor Coverage 225 Evasion (%) 55 Targeting Accuracy 8 Recoil Reduction 4 Item Schematics ----------------- Adv. Treads | -9/Materials | Scanalyzed Grenade Launcher | -9/Materials | Scanalyzed Titanium Leg | -8/Materials | Scanalyzed Minigun | -8/Materials | Scanalyzed Robot Schematics ------------------ None Fabricated ------------ Nothing Repaired ---------- Minigun | 28% | -8/Materials Grenade Launcher | 45% | -8/Materials Alien Tech Used ----------------- None Achievements -------------- None Challenges ------------ None Game ------ Seed AngularHypercooledBarrier Manual? 0 Play Time 00:50:47 Cumulative 105.1 hours Start 2025.05.12 @ 01:52:28 End 2025.05.27 @ 17:45:01 Sessions 8 Manual Loads 0 Difficulty Rogue Special Mode None Game No. 73 Rogue 73 Adventurer 0 Explorer 0 Win Type - Total 0 Types 0/0/0/0/0/0/0/0/0/0 Lore% 48 Gallery% 48 Achievement% 39 Wizard Run 0 Options --------- Layout 1 ASCII 0 Keyboard 0 Movement Mouse Keybinds 0 Fullscreen 1 Font 24/Smallcaps Map View 50x35 Zoom Use 0% Tactical HUD 1 Map Filters NONE Filters NONE Steam 1 RUN: 7609b824-1af7-40cd-a0e6-ae590bf48143